bitfinex-derivatives/quotes_ETHF0:USTF0_20250326
["timestamp","ask_amount","ask_price","bid_price","bid_amount"]
[1743003412462,3.463,2020.2,2020.1,3.2078]
[1743003412765,4.7923,2020.2,2020.0,0.00742501]
[1743003415266,3.2078,2020.1,2020.0,0.00742501]
[1743003415573,4.5443,2020.1,2020.0,0.00742501]
[1743003418759,1.3365,2020.1,2020.0,0.00742501]
[1743003420474,1.3365,2020.1,2019.6,0.6873]
[1743003420673,4.5443,2020.1,2019.6,0.6873]
[1743003421176,1.3149,2020.0,2019.6,0.6873]
[1743003421369,4.1192,2019.9,2019.6,0.6873]
[1743003421668,1.3149,2019.8,2019.6,0.6873]
[1743003423076,3.463,2019.9,2019.6,0.6873]
[1743003424078,1.3149,2019.8,2019.6,0.6873]
[1743003424369,1.3149,2019.8,2019.5,3.86232501]
[1743003424570,3.2078,2019.7,2019.5,0.00742501]
[1743003424769,5.4257,2019.6,2019.5,0.00742501]
[1743003424973,4.7601,2019.6,2019.5,0.00742501]
[1743003425975,3.463,2019.6,2019.5,0.00742501]
[1743003426567,3.463,2019.6,2019.5,3.21522501]
[1743003429577,3.463,2019.6,2019.5,0.00742501]
[1743003430371,4.8028,2019.6,2019.5,0.00742501]
[1743003431572,4.8028,2019.6,2019.5,1.39662501]
[1743003437682,0.999,2020.2,2019.5,4.60442501]
[1743003437884,4.7973,2020.1,2019.8,3.2078]
[1743003438183,3.463,2020.2,2019.9,1.3971]
[1743003438382,3.463,2020.2,2019.9,2.7336]
[1743003438778,1.3343,2020.1,2020.0,1.3365]
[1743003439083,3.463,2020.2,2020.0,1.3365]
[1743003439879,4.758,2020.2,2020.0,1.3365]
[1743003440386,1.295,2020.1,2020.0,1.3365]
[1743003441280,1.295,2020.1,2019.9,0.7076]
[1743003441586,1.295,2020.1,2019.9,1.9977]
[1743003442282,1.295,2020.1,2020.0,1.4199]
[1743003446086,1.295,2020.1,2019.9,0.7076]
[1743003446389,1.3824,2020.0,2019.8,1.3151]
[1743003446587,4.8094,2019.9,2019.8,1.3151]
[1743003449283,3.462,2020.0,2019.8,1.3151]
[1743003449484,3.462,2020.0,2019.8,4.5229]
[1743003449985,3.462,2020.0,2019.9,1.3194]
[1743003450487,1.3232,2020.1,2019.9,1.3194]
[1743003450695,2.3222,2020.3,2019.9,1.3194]
[1743003450994,1.3232,2020.2,2020.0,0.6831]
[1743003451296,1.3232,2020.2,2020.1,4.5272]
[1743003451497,1.3232,2020.2,2020.1,5.1954]
[1743003451893,0.999,2020.3,2020.1,5.1954]
[1743003452094,0.999,2020.3,2020.2,1.4238]
[1743003453598,0.999,2020.4,2020.2,1.4238]
[1743003454088,0.999,2020.4,2020.2,4.8858]
[1743003454482,0.999,2020.4,2020.3,1.9333967]
[1743003454690,1.0063636,2020.5,2020.3,1.9333967]
[1743003454885,1.0063636,2020.5,2020.4,5.8143967]
[1743003455089,1.0063636,2020.5,2020.4,2.6065967]
[1743003455290,1.0063636,2020.5,2020.4,1.9628]
[1743003457496,4.4673636,2020.5,2020.1,0.6682]
[1743003457698,1.384,2020.4,2020.2,1.4044]
[1743003465307,3.2078,2020.3,2020.2,1.4044]
[1743003466201,1.384,2020.4,2020.2,1.4044]
[1743003466600,4.4673636,2020.5,2020.2,1.4044]
[1743003467805,1.0063636,2020.5,2020.2,1.4044]
[1743003468296,1.0063636,2020.5,2020.3,0.64572139]
[1743003468498,1.0063636,2020.5,2020.4,2.0362]
[1743003470800,1.0063636,2020.5,2020.4,1.3736]
[1743003471508,4.4663636,2020.5,2020.2,0.6564]
[1743003471800,1.3264,2020.4,2020.2,2.0854]
[1743003472499,1.3264,2020.4,2020.3,1.429]
[1743003475408,4.4663636,2020.5,2020.3,1.429]
[1743003475593,5.8712636,2020.5,2020.3,1.429]
[1743003475904,1.3087,2020.4,2020.3,1.429]
[1743003480308,1.3087,2020.4,2020.2,0.6564]
[1743003480504,1.3087,2020.4,2020.2,2.0279]
[1743003480715,3.2078,2020.3,2020.1,0.6682]
[1743003480905,1.3705,2020.2,2019.8,5.2844]
[1743003481211,1.3705,2020.2,2019.9,2.71217102]
[1743003481409,4.8295,2020.2,2020.0,1.3715]
[1743003482011,1.3005,2020.1,2020.0,1.3715]
[1743003482412,1.3005,2020.1,2020.0,2.01817185]
[1743003482808,1.3005,2020.1,2020.0,1.3715]
[1743003483513,1.3005,2020.1,2019.8,0.7051]
[1743003484605,1.3005,2020.1,2019.9,1.383]
[1743003495310,1.3005,2020.1,2019.9,2.0532]
[1743003495716,1.3005,2020.1,2020.0,1.3005]
[1743003496817,1.3005,2020.1,2019.8,0.7051]
[1743003497318,1.3005,2020.1,2019.9,1.432]
[1743003497520,0.6549,2020.0,2019.9,1.432]
[1743003497821,0.6549,2020.0,2019.8,0.7051]
[1743003498020,8.0702,2019.9,2019.5,0.00742501]
[1743003498313,1.4044,2019.8,2019.5,0.00742501]
[1743003499313,1.4044,2019.8,2019.5,2.08532501]
[1743003499510,1.4044,2019.8,2019.6,1.432]
[1743003500119,0.6573,2019.7,2019.5,0.65332501]
[1743003500312,8.0125,2019.6,2019.5,0.00742501]
[1743003501213,8.0125,2019.6,2019.3,2.1113]
[1743003501415,2.0352,2019.5,2019.3,1.3959]
[1743003501614,0.6885,2019.5,2019.3,1.3959]
[1743003501814,0.6629,2019.4,2019.3,1.3959]
[1743003502616,0.6629,2019.4,2019.1,0.67092501]
[1743003502825,3.458,2019.3,2019.2,1.3959]
[1743003503017,6.6658,2019.3,2019.2,1.3959]
[1743003504718,3.2078,2019.3,2019.2,1.3959]
[1743003505024,3.458,2019.3,2019.2,1.3959]
[1743003510126,4.7877,2019.3,2019.2,1.3959]
[1743003511729,7.9955,2019.3,2019.2,1.3959]
[1743003512825,7.9955,2019.3,2019.1,0.00742501]
[1743003513028,2.0524,2019.2,2019.1,0.00742501]
[1743003514226,2.0524,2019.2,2019.1,1.42892501]
[1743003515128,2.0524,2019.2,2019.1,0.00742501]
[1743003515424,4.8333,2019.2,2019.1,0.00742501]
[1743003515728,3.458,2019.2,2019.1,2.06802501]
[1743003515922,4.8468,2019.2,2019.1,2.06802501]
[1743003521026,4.8468,2019.2,2019.1,2.06802501]
[1743003523325,4.8468,2019.2,2018.6,3.2078]
[1743003523630,3.2078,2019.0,2018.7,2.0566]
[1743003523829,4.7955,2018.9,2018.8,1.3729]
[1743003528034,6.6648,2019.0,2018.8,1.3729]
[1743003528234,3.457,2019.0,2018.9,0.6894]
[1743003530039,6.6648,2019.0,2018.8,1.3729]
[1743003530233,1.4283,2018.9,2018.8,1.3729]
[1743003538143,2.27328794,2018.9,2018.6,0.00742501]
[1743003538437,1.4296,2018.8,2018.6,0.00742501]
[1743003538641,3.457,2018.7,2018.6,0.00742501]
[1743003539145,4.7614,2018.7,2018.6,0.00742501]
[1743003539346,3.457,2018.7,2018.6,0.00742501]
[1743003540236,6.6648,2018.7,2018.6,0.00742501]
[1743003540435,8.0417,2018.7,2018.6,0.00742501]
[1743003543743,8.0417,2018.7,2018.3,1.3179]
[1743003543945,3.2078,2018.4,2018.3,1.3179]
[1743003544143,6.6638,2018.4,2018.3,1.3179]
[1743003544744,7.3278,2018.4,2018.3,1.3179]
[1743003545443,7.3278,2018.4,2018.1,0.00742501]
[1743003545741,2.0567,2018.3,2018.1,0.00742501]
[1743003545943,1.3652,2018.2,2018.1,1.41332501]
[1743003546846,7.3278,2018.4,2018.1,1.41332501]
[1743003547046,3.2078,2018.4,2018.1,1.41332501]
[1743003547246,3.456,2018.3,2018.1,1.41332501]
[1743003548751,4.8085,2018.3,2018.1,1.41332501]
[1743003548949,1.3525,2018.2,2018.1,1.41332501]
[1743003550349,1.3525,2018.2,2018.1,0.00742501]
[1743003552349,3.456,2018.3,2018.1,0.00742501]
[1743003552547,4.8655,2018.3,2018.1,0.00742501]
[1743003552949,3.456,2018.3,2018.1,0.00742501]
[1743003553249,4.8655,2018.3,2018.1,0.00742501]
[1743003553842,1.4095,2018.2,2018.1,0.00742501]
[1743003554746,1.4095,2018.2,2018.1,1.33842501]
[1743003555343,1.4095,2018.2,2018.1,0.00742501]
[1743003565351,3.455,2018.2,2018.1,0.00742501]
[1743003574261,4.454,2018.2,2018.1,0.00742501]
[1743003577762,4.454,2018.2,2017.9,1.3217]
[1743003577957,2.0375,2018.1,2017.9,1.3217]
[1743003578156,1.3688,2018.0,2017.9,1.3217]
[1743003578655,1.3688,2018.0,2017.9,1.97025393]
[1743003581561,1.3688,2018.0,2017.9,1.97025309]
[1743003581762,4.454,2018.2,2017.9,1.97025309]
[1743003581965,1.3123,2018.1,2018.0,1.3785]
[1743003582272,1.3123,2018.1,2018.0,2.02705309]
[1743003583768,3.453,2018.1,2018.0,2.02705309]
[1743003584266,0.999,2018.2,2018.0,2.02705309]
[1743003584476,3.453,2018.2,2018.1,2.74045309]
[1743003585172,4.7507,2018.2,2018.1,2.74045309]
[1743003585565,4.7507,2018.2,2018.1,2.0919]
[1743003586073,3.453,2018.2,2018.1,2.0919]
[1743003586768,3.453,2018.2,2018.1,2.74030377]
[1743003588975,4.452,2018.2,2018.1,2.74030377]
[1743003591075,0.999,2018.2,2018.1,2.74030377]
[1743003594685,4.451,2018.4,2018.1,2.74030377]
[1743003594882,4.451,2018.4,2018.2,4.6091]
[1743003595086,4.451,2018.4,2018.3,1.4013]
[1743003595779,4.451,2018.4,2018.3,2.04970377]
[1743003599088,0.999,2018.4,2018.3,2.04970377]
[1743003600983,0.999,2018.4,2018.3,1.4013]
[1743003602083,1.6522,2018.4,2018.3,1.4013]
[1743003602391,0.999,2018.4,2018.3,1.4013]
[1743003603084,1.6704,2018.4,2017.9,3.2078]
[1743003603287,4.7866,2018.3,2018.0,1.3449]
[1743003603489,5.2303,2018.2,2018.0,1.3449]
[1743003603697,1.3265,2018.1,2018.0,1.3449]
[1743003603882,1.9979,2018.1,2018.0,1.3449]
[1743003604284,1.9979,2018.1,2017.8,1.4155]
[1743003604588,4.7765,2018.0,2017.9,1.3946]
[1743003604894,5.7755,2018.0,2017.7,0.00501139]
[1743003605084,1.3265,2017.9,2017.7,1.39961139]
[1743003605285,0.999,2017.8,2017.7,1.39961139]
[1743003605779,2.385,2017.8,2017.7,1.39961139]
[1743003605983,0.999,2017.8,2017.7,1.39961139]
[1743003606184,0.999,2017.8,2017.7,2.69899007]
[1743003606387,0.999,2017.8,2017.7,5.19899007]
[1743003606890,3.45,2018.2,2017.7,5.19899007]
[1743003607090,3.45,2018.2,2017.9,3.2078]
[1743003607290,6.66522501,2018.5,2018.0,1.4249]
[1743003607495,6.66522501,2018.5,2018.2,3.2078]
[1743003607793,6.66522501,2018.5,2018.3,2.1133]
[1743003607986,6.66522501,2018.5,2018.4,1.4249]
[1743003610694,3.45742501,2018.5,2018.4,1.4249]
[1743003611202,3.45742501,2018.5,2018.4,2.0719236]
[1743003611796,0.00742501,2018.5,2018.4,2.0719236]
[1743003614197,3.449,2019.0,2018.4,4.5719236]
[1743003614400,3.449,2019.0,2018.6,3.2078]
[1743003614591,1.4188,2018.9,2018.7,1.968]
[1743003614797,1.4188,2018.9,2018.8,1.318]
[1743003614994,1.4188,2018.9,2018.8,1.9650236]
[1743003615504,1.4188,2018.9,2018.8,1.318]
[1743003616296,4.6266,2018.9,2018.6,3.2078]
[1743003616500,0.6938,2018.8,2018.6,3.2078]
[1743003616698,0.6893,2018.7,2018.6,3.2078]
[1743003616894,4.1373,2018.7,2018.2,4.5479]
[1743003617202,1.3353,2018.6,2018.3,0.64662041]
[1743003617498,1.3353,2018.6,2018.4,1.3401]
[1743003617703,0.6921,2018.5,2018.4,1.3401]
[1743003617892,0.6921,2018.5,2018.4,1.98675235]
[1743003620107,0.6921,2018.5,2018.4,0.64665235]
[1743003623009,0.6921,2018.5,2017.9,3.2078]
[1743003623210,4.7772,2018.4,2018.0,1.3052]
[1743003623514,1.9739,2018.3,2018.0,1.3052]
[1743003623810,1.3292,2018.2,2018.0,1.3052]
[1743003624112,2.0354,2018.2,2018.0,1.3052]
[1743003624508,2.0354,2018.2,2018.1,0.6727]
[1743003625408,1.3292,2018.2,2018.1,0.6727]
[1743003626111,4.8509,2018.4,2018.1,0.6727]
[1743003626308,6.6558,2018.6,2018.2,5.2072]
[1743003626613,6.6558,2018.6,2018.3,1.2913]
[1743003626812,3.448,2018.6,2018.3,1.2913]
[1743003632413,1.3363,2018.5,2018.3,1.2913]
[1743003635408,1.3363,2018.5,2018.4,0.64189999]
[1743003636902,4.7823,2018.5,2018.4,0.64189999]
[1743003637105,4.7823,2018.5,2017.9,1.3123]
[1743003637318,3.2078,2018.3,2017.9,1.3123]
[1743003637510,5.4282,2018.2,2017.9,1.3123]
[1743003637710,1.3342,2018.1,2017.9,1.3123]
[1743003638806,1.3342,2018.1,2017.6,4.5732]
[1743003639003,1.3342,2018.1,2017.7,1.31731139]
[1743003640317,2.0032,2018.1,2017.7,1.31731139]
[1743003640707,1.3494,2018.0,2017.7,1.31731139]
[1743003640907,3.446,2017.9,2017.7,1.31731139]
[1743003641117,1.3494,2017.8,2017.7,1.31731139]
[1743003642520,2.0358,2017.8,2017.7,1.31731139]
[1743003643421,2.0358,2017.8,2017.6,3.2078]
[1743003643617,2.1362,2017.7,2017.6,3.2078]
[1743003644022,5.344,2017.7,2017.5,1.4143]
[1743003644212,1.4269,2017.6,2017.5,1.4143]
[1743003645019,4.8729,2017.6,2017.3,0.00742501]
[1743003645318,4.8729,2017.6,2017.3,1.42172501]
[1743003645521,1.4269,2017.5,2017.3,1.42172501]
[1743003645722,1.4269,2017.5,2017.3,2.82272501]
[1743003646117,1.4269,2017.5,2017.4,1.41]
[1743003647309,3.446,2017.6,2017.4,1.41]
[1743003647714,3.2078,2017.7,2017.4,1.41]
[1743003647914,0.00742501,2018.1,2017.5,3.2078]
[1743003648109,3.45342501,2018.1,2017.6,1.41]
[1743003648309,4.84122501,2018.1,2017.7,0.6867]
[1743003648514,1.3878,2018.0,2017.8,1.41]
[1743003652927,1.3878,2018.0,2017.8,4.6178]
[1743003653418,1.3878,2018.0,2017.9,1.3056]
[1743003654127,1.3878,2018.0,2017.5,3.2078]
[1743003654318,1.3878,2018.0,2017.9,1.3056]
[1743003659034,1.3878,2018.0,2017.8,3.2078]
[1743003659332,1.3878,2018.0,2017.5,4.6252]
[1743003659626,4.5956,2018.0,2017.4,1.3793]
[1743003659823,4.5956,2018.0,2017.5,1.4174]
[1743003660034,1.3178,2017.9,2017.5,1.4174]
[1743003660227,3.444,2017.8,2017.5,1.4174]
[1743003660535,2.0302,2017.7,2017.5,1.4174]
[1743003660731,1.3178,2017.6,2017.5,1.4174]
[1743003661422,3.444,2017.8,2017.5,4.6252]
[1743003661830,3.444,2017.8,2017.6,1.3664]
[1743003662234,5.5533,2018.0,2017.7,0.6972]
[1743003662425,5.5533,2018.0,2017.8,2.0338]
[1743003662632,5.5533,2018.0,2017.9,1.3664]
[1743003663329,6.1992,2018.0,2017.7,0.6972]
[1743003663534,1.4141,2017.9,2017.8,1.3664]
[1743003663929,1.4141,2017.9,2017.3,0.00742501]
[1743003664127,1.4141,2017.9,2017.4,0.6674]
[1743003664426,3.444,2017.8,2017.4,0.6674]
[1743003664632,3.444,2017.8,2017.5,1.4257]
[1743003664834,5.2377,2017.7,2017.3,0.00742501]
[1743003665033,2.0741,2017.6,2017.3,1.43312501]
[1743003665225,4.815,2017.5,2017.3,0.00742501]
[1743003665425,1.371,2017.4,2017.3,0.00742501]
[1743003665636,2.0798,2017.4,2017.3,0.00742501]
[1743003666328,2.0798,2017.4,2017.3,1.43312501]
[1743003667332,2.0798,2017.4,2017.3,2.12272501]
[1743003668638,2.0798,2017.4,2017.3,0.00742501]
[1743003668935,2.0798,2017.4,2017.3,1.40682501]
[1743003669840,1.371,2017.4,2017.3,1.40682501]
[1743003670337,3.444,2017.5,2017.3,1.40682501]
[1743003671339,1.4076,2017.6,2017.3,1.40682501]
[1743003671636,2.7496,2017.6,2017.3,1.40682501]
[1743003672137,1.4076,2017.5,2017.3,1.40682501]
[1743003673139,1.342,2017.6,2017.3,1.40682501]
[1743003673336,2.6687,2017.6,2017.3,1.40682501]
[1743003674138,2.6687,2017.6,2017.4,0.6634]
[1743003674441,2.6687,2017.6,2017.5,1.2893]
[1743003675433,2.6687,2017.6,2017.5,1.9768]
[1743003675733,2.6687,2017.6,2017.5,1.2893]
[1743003675932,2.6687,2017.6,2017.3,0.00742501]
[1743003676133,1.3267,2017.5,2017.3,1.29672501]
[1743003676438,3.443,2017.4,2017.3,0.00742501]
[1743003676839,3.443,2017.4,2017.3,1.37272501]
[1743003679140,3.443,2017.4,2017.3,0.00742501]
[1743003679649,6.6508,2017.4,2017.3,0.00742501]
[1743003679941,6.6508,2017.4,2016.8,3.8731]
[1743003680141,2.0834,2017.3,2016.9,1.3382]
[1743003680335,2.0535,2017.2,2016.9,1.3382]
[1743003680646,1.4023,2017.1,2016.9,1.3382]
[1743003681645,0.6848,2017.0,2016.9,1.3382]
[1743003682655,0.6848,2017.0,2016.8,3.2078]
[1743003682848,1.2937,2016.9,2016.8,4.5751]
[1743003683351,3.45042501,2017.1,2016.8,4.5751]
[1743003683550,3.45042501,2017.1,2016.9,2.0768]
[1743003683751,4.74412501,2017.1,2017.0,1.3673]
[1743003684746,3.45042501,2017.1,2017.0,2.0175]
[1743003685346,0.00742501,2017.1,2017.0,2.0175]
[1743003685547,6.6508,2017.7,2017.0,4.5175]
[1743003685749,6.6508,2017.7,2017.1,5.1564911]
[1743003685951,1.3248,2017.6,2017.2,1.3123]
[1743003686151,1.3248,2017.6,2017.3,0.6446]
[1743003686349,1.3248,2017.6,2017.4,1.3123]
[1743003686549,1.3248,2017.6,2017.4,1.9625]
[1743003687053,1.3248,2017.6,2017.5,1.3123]
[1743003692355,1.3248,2017.6,2017.3,0.00742501]
[1743003692660,1.3595,2017.5,2017.3,0.00742501]
[1743003692855,8.0457,2017.4,2016.8,3.2078]
[1743003693050,1.3959,2017.3,2016.9,1.362]
[1743003694557,3.2078,2017.0,2016.9,1.362]
[1743003694861,6.6488,2017.0,2016.6,1.356]
[1743003695054,2.6805,2016.9,2016.7,1.3828]
[1743003695256,1.307,2016.8,2016.7,1.3828]
[1743003697660,0.6895,2016.9,2016.7,1.3828]
[1743003697855,6.6488,2017.0,2016.7,1.3828]
[1743003697856,3.441,2017.0,2016.7,1.3828]
[1743003698358,1.3783,2016.9,2016.7,1.3828]
[1743003698956,3.441,2017.0,2016.7,1.3828]
[1743003699457,3.441,2017.0,2016.8,40.8]
[1743003699658,3.441,2017.0,2016.9,1.4159]
[1743003703261,3.441,2017.0,2016.9,1.4159]
[1743003705255,3.441,2017.0,2016.6,1.356]
[1743003705256,6.6488,2017.0,2016.6,1.356]
[1743003705459,1.9847,2016.9,2016.7,1.33]
[1743003705660,1.328,2016.8,2016.7,1.33]
[1743003707267,3.44,2017.0,2016.7,1.33]
[1743003707766,1.4104,2016.9,2016.7,1.33]
[1743003710553,0.7073,2017.2,2016.7,1.33]
[1743003710754,4.8028,2017.1,2016.7,1.33]
[1743003711365,4.8377,2017.2,2016.8,3.84471898]
[1743003711657,4.8377,2017.2,2016.9,1.3777]
[1743003711864,3.44,2017.3,2017.1,3.2078]
[1743003712055,2.734,2017.5,2017.2,1.3777]
[1743003712261,3.44,2017.3,2017.2,1.3777]
[1743003713365,3.2078,2017.6,2017.2,1.3777]
[1743003713561,0.00742501,2017.7,2017.4,3.2078]
[1743003713865,0.00742501,2017.7,2017.5,2.0196]
[1743003718172,0.00742501,2017.7,2017.6,0.63582376]
[1743003718465,0.00742501,2017.7,2017.5,2.0196]
[1743003718869,3.44642501,2017.7,2017.5,2.0196]
[1743003719169,1.3734,2017.6,2017.5,2.0196]
[1743003719464,1.3734,2017.6,2017.1,3.2078]
[1743003719673,4.5812,2017.6,2017.2,1.3632]
[1743003719970,0.6577,2017.5,2017.2,1.3632]
[1743003720168,4.8124,2017.4,2017.2,1.3632]
[1743003720372,0.6885,2017.3,2017.2,1.3632]
[1743003720671,2.0619,2017.3,2017.2,1.3632]
[1743003722766,1.3734,2017.3,2017.2,1.3632]
[1743003723073,3.44542501,2017.7,2017.2,4.571]
[1743003723772,3.44542501,2017.7,2017.3,0.63570743]
[1743003724073,3.44542501,2017.7,2017.4,1.3858]
[1743003724283,3.44542501,2017.7,2017.5,3.9048]
[1743003724470,3.44542501,2017.7,2017.6,1.3858]
[1743003726374,3.44542501,2017.7,2017.5,0.697]
[1743003726569,1.4223,2017.6,2017.3,1.3291]
[1743003727074,1.3649,2017.5,2017.3,1.3291]
[1743003727274,4.8603,2017.4,2017.3,1.3291]
[1743003728175,4.8603,2017.4,2017.2,3.2078]
[1743003728485,4.8603,2017.4,2017.1,1.3736]
[1743003730277,4.8603,2017.4,2016.9,3.8855]
[1743003730466,4.8603,2017.4,2017.0,1.3736]
[1743003731175,3.2078,2017.3,2017.0,1.3736]
[1743003731371,1.3745,2017.2,2017.0,1.3736]
[1743003731576,3.437,2017.1,2017.0,1.3736]
[1743003736880,4.0922,2017.1,2017.0,1.3736]
[1743003739281,4.7958,2017.1,2017.0,1.3736]
[1743003742688,1.3745,2017.2,2017.0,1.3736]
[1743003742888,3.437,2017.4,2017.0,1.3736]
[1743003743198,4.5412,2017.6,2017.2,3.2078]
[1743003743199,1.3923,2017.5,2017.2,3.2078]
[1743003743495,3.44342501,2017.7,2017.3,1.9703]
[1743003743693,3.44342501,2017.7,2017.5,3.2078]
[1743003743893,3.44342501,2017.7,2017.6,1.324]
[1743003744190,3.44342501,2017.7,2017.6,2.0116]
[1743003744593,0.00742501,2017.7,2017.6,2.0116]
[1743003746080,0.00742501,2017.7,2017.6,2.64763734]
[1743003746280,3.2078,2018.5,2017.6,5.14763734]
[1743003746488,7.9636,2018.5,2018.0,3.2078]
[1743003746687,7.9636,2018.5,2018.1,2.0682]
[1743003746992,7.9636,2018.5,2018.2,1.3944]
[1743003748494,0.00742501,2018.6,2018.3,3.2078]
[1743003748693,0.00742501,2018.6,2018.4,1.3944]
[1743003749591,0.00742501,2018.6,2018.4,2.0571]
[1743003752196,1.40832501,2018.6,2018.4,2.0571]
[1743003754901,0.00742501,2018.6,2018.4,2.0571]
[1743003755596,1.35662501,2018.6,2018.4,2.0571]
[1743003762704,0.00742501,2018.6,2018.4,2.0571]
[1743003763909,1.35102501,2018.6,2018.4,2.0571]
[1743003765912,1.35102501,2018.6,2018.5,1.2978]
[1743003768905,0.00742501,2018.6,2018.5,1.2978]
[1743003769309,1.35342501,2018.6,2018.5,1.2978]
[1743003769502,0.00742501,2018.6,2018.5,1.2978]
[1743003770913,4.777,2019.0,2018.5,1.93199529]
[1743003771106,4.777,2019.0,2018.7,3.2078]
[1743003771607,1.346,2019.0,2018.8,2.0687]
[1743003771914,1.346,2019.0,2018.9,1.4093]
[1743003772608,0.00742501,2019.1,2018.9,1.4093]
[1743003772908,0.00742501,2019.1,2019.0,3.2078]
[1743003773111,5.5453,2019.6,2019.0,3.2078]
[1743003773409,1.4162,2019.5,2019.1,2.1244]
[1743003773607,1.4162,2019.5,2019.3,3.2078]
[1743003773803,1.4162,2019.5,2019.4,1.3939]
[1743003774896,1.4162,2019.5,2019.2,0.67012501]
[1743003775114,1.4162,2019.5,2019.2,1.40132501]
[1743003775412,3.2078,2019.4,2019.2,0.00742501]
[1743003775611,1.3025,2019.3,2019.2,0.00742501]
[1743003777414,1.3025,2019.3,2018.8,1.3939]
[1743003777415,3.8025,2019.3,2018.4,4.5988]
[1743003777612,4.8193,2019.2,2018.8,1.3289]
[1743003777911,6.2206,2019.2,2018.8,1.3289]
[1743003778107,1.4013,2019.1,2018.8,1.3289]
[1743003778911,1.4013,2019.1,2018.8,1.9933]
[1743003779418,1.4013,2019.1,2018.9,1.3289]
[1743003780205,1.4013,2019.1,2018.7,3.21522501]
[1743003780414,4.6091,2019.1,2018.7,0.00742501]
[1743003780807,1.3115,2019.0,2018.7,0.00742501]
[1743003781113,3.429,2018.9,2018.7,0.00742501]
[1743003781315,1.9902,2018.8,2018.7,0.00742501]
[1743003781515,2.6849,2018.8,2018.7,0.00742501]
[1743003781810,3.2078,2019.1,2018.7,3.21522501]
[1743003782012,3.2078,2019.1,2018.8,1.9922]
[1743003782213,3.2078,2019.1,2018.9,1.3399]
[1743003782408,1.3115,2019.5,2019.0,44.0078]
[1743003782607,3.9025,2019.6,2019.3,3.2078]
[1743003782807,5.214,2019.6,2019.4,1.3399]
[1743003783099,0.00742501,2019.7,2019.4,1.3399]
[1743003783100,0.00742501,2019.7,2019.4,2.0261]
[1743003783307,0.00742501,2019.7,2019.6,3.2078]
[1743003783705,0.00742501,2019.7,2019.6,4.6134]
[1743003783906,0.00742501,2019.7,2019.6,5.24852312]
[1743003785710,0.00742501,2019.7,2019.6,4.6134]
[1743003786817,0.00742501,2019.7,2019.6,5.24673142]
[1743003787210,0.00742501,2019.7,2019.6,4.6134]
[1743003789517,3.2078,2020.3,2019.6,7.74610883]
[1743003789811,6.71799863,2020.2,2019.9,3.2078]
[1743003790012,6.71799863,2020.2,2020.0,1.2921]
[1743003790820,10.14599863,2020.2,2019.9,3.21522501]
[1743003791025,10.14599863,2020.2,2020.0,1.2921]
[1743003793623,8.71619863,2020.2,2020.0,1.2921]
[1743003793830,1.4264,2020.1,2020.0,1.2921]
[1743003795222,6.64222501,2020.3,2020.0,1.2921]
[1743003795426,1.3003,2020.2,2020.0,1.2921]
[1743003796824,0.6649,2020.1,2019.9,3.21522501]
[1743003797022,1.3003,2020.0,2019.9,3.21522501]
[1743003798424,1.3003,2020.0,2019.9,0.00742501]
[1743003799925,6.64222501,2020.3,2019.9,0.00742501]
[1743003800124,1.3025,2020.2,2019.9,1.35612501]
[1743003800423,1.3025,2020.2,2019.9,2.04972501]
[1743003800925,1.9908,2020.2,2020.0,1.3487]
[1743003801316,1.3808,2020.1,2020.0,1.3487]
[1743003801518,3.21522501,2020.3,2020.0,1.3487]
[1743003801819,6.64122501,2020.3,2020.0,1.9947]
[1743003802014,1.3808,2020.2,2020.0,1.9947]
[1743003802218,1.3808,2020.2,2020.1,1.4063]
[1743003803424,1.3808,2020.2,2020.1,4.6141]
[1743003804025,0.00742501,2020.3,2020.1,4.6141]
[1743003804227,1.31292501,2020.3,2020.2,1.3699]
[1743003808029,1.31292501,2020.3,2020.1,3.2078]
[1743003808230,1.31292501,2020.3,2020.1,4.5098]
[1743003808829,1.31292501,2020.3,2020.1,1.302]
[1743003809031,0.6872,2020.2,2020.1,1.302]
[1743003810225,1.3466,2020.2,2020.1,1.302]
[1743003810435,1.3466,2020.2,2019.9,0.70102501]
[1743003810623,1.318,2020.1,2019.9,2.09452501]
[1743003811423,1.318,2020.1,2019.9,1.40092501]
[1743003811630,1.318,2020.1,2020.0,1.3935]
[1743003812431,1.318,2020.1,2020.0,2.03091866]
[1743003813927,4.742,2020.1,2020.0,0.63741866]
[1743003814133,4.742,2020.1,2020.0,4.63741866]
[1743003815032,4.742,2020.1,2020.0,4.0]
[1743003815940,9.09312801,2020.1,2019.2,1.3629]
[1743003816128,3.2078,2019.7,2019.2,0.7076]
[1743003816438,4.8407,2019.6,2019.2,0.7076]
[1743003816735,1.4167,2019.5,2019.3,1.4302]
[1743003817133,1.4167,2019.5,2019.3,4.638]
[1743003817534,1.4167,2019.5,2019.3,3.2078]
[1743003817735,1.4167,2019.5,2019.3,4.638]
[1743003818133,1.4167,2019.5,2019.4,1.4302]
[1743003819635,1.4167,2019.5,2019.2,0.00742501]
[1743003819830,0.7097,2019.4,2019.2,0.00742501]
[1743003820036,4.8138,2019.3,2019.2,0.00742501]
[1743003822041,7.3138,2019.3,2019.2,0.00742501]
[1743003822341,7.3960504,2019.3,2018.4,5.902]
[1743003822529,3.2078,2019.1,2018.5,1.3527]
[1743003822729,4.8296,2019.0,2018.5,2.0256]
[1743003822939,1.4056,2018.9,2018.6,1.3527]
[1743003825534,2.0627,2018.9,2018.6,1.3527]
[1743003826035,1.3044,2018.8,2018.6,1.3527]
[1743003826238,3.425,2018.7,2018.6,1.3527]